Cogmind - Beta 13 @@@ ROGUE MODE // 2024.03.31 @ 13:59:30 Player: Oldman Pu Result: Destroyed by 33-C69(R) with Subdweller Machine Gun Performance ------------- Evolutions (0) 0 Regions Visited (2) 400 Robots Destroyed (33) 165 Value Destroyed (645) 645 Prototype IDs (0) 0 Alien Tech Used (0) 0 Bonus (0) 0 TOTAL SCORE: 1210 Bonus ------- None Cogmind --------- Core Integrity 0/250 Matter 300/300 Energy 250/250 System Corruption 0% Temperature Cool (0) Movement Rolling (140) Ox4 Location -10/Subcaves Parts ------- > --- POWER (1) -------- Ion Engine > --- PROPULSION (2) --- Wheel Wheel > --- UTILITY (2) ------ Cooling System Huge Storage Unit > --- WEAPON (2) ------- Medium Laser Medium Laser > --- INVENTORY (25) --- Ion Engine Ion Engine Ion Engine Light Treads Wheel Wheel Subdweller Monowheel Heat Sink Cooling System Cooling System Cooling System Large Storage Unit Scrap Shield Medium Laser Light Assault Rifle Light Assault Rifle Light Assault Rifle Light Cannon Peak State ------------ > --- POWER ------------ Ion Engine > --- PROPULSION ------- Wheel Wheel > --- UTILITY ---------- Cooling System Huge Storage Unit > --- WEAPON ----------- Medium Laser Medium Laser > --- INVENTORY -------- Ion Engine Ion Engine Ion Engine Light Ion Engine Light Treads Wheel Wheel Heat Sink Cooling System Cooling System Cooling System Large Storage Unit Medium Laser Light Assault Rifle Light Assault Rifle Light Assault Rifle Light Cannon [Rating: 10] Favorites ----------- Power Ion Engine Engine Ion Engine Propulsion Wheel Wheel Wheel Utility Cooling System Device Cooling System Storage Huge Storage Unit Weapon Medium Laser Energy Gun Medium Laser Ballistic Gun Assault Rifle Build | -11 -10 -10 ------- Run | Yrd Mat Sub Slots Evolved . | . . . Power . | . . . Propulsion . | . . . Utility . | . . . Weapon . | . . . Parts Attached 22 | 6 16 . Power 3 | 1 2 . Engine 3 | 1 2 . Core . | . . . Reactor . | . . . Propulsion 6 | 2 4 . Treads . | . . . Leg . | . . . Wheel 6 | 2 4 . Hover . | . . . Flight . | . . . Utility 7 | 1 6 . Device 3 | . 3 . Storage 4 | 1 3 . Processor . | . . . Hackware . | . . . Protection . | . . . Artifact . | . . . Weapon 6 | 2 4 . Energy Gun 3 | 1 2 . Energy Cannon . | . . . Ballistic Gun 3 | 1 2 . Ballistic Cannon . | . . . Launcher . | . . . Special Weapon . | . . . Impact Weapon . | . . . Slashing Weapon . | . . . Piercing Weapon . | . . . Special Melee Weapon . | . . . Unidentified Prototypes . | . . . Parts Lost 4 | . 4 . Power . | . . . Propulsion 3 | . 3 . Utility . | . . . Weapon 1 | . 1 . Highest Loss Streak 1 | . 1 . To Critical Strikes . | . . . Average Slot Usage (%) 95 | . 93 100 Engine 14 | . 14 14 Wheel 27 | . 27 28 Device 10 | . 9 14 Storage 14 | . 14 14 Energy Gun 23 | . 21 28 Ballistic Gun 4 | . 6 . Naked Turns . | . . . Heaviest Build 91 | 12 91 91 Greatest Support 26 | 26 26 20 Greatest Overweight (x) 9 | . 9 4 Average Overweight (x) 2 | . 2 4 Largest Inventory Capacity 25 | 8 25 25 Average Capacity 21 | 6 19 25 Most Carried 19 | . 17 19 Average Carried 12 | . 9 17 Final Capacity 25 | 8 25 25 Final Carried 19 | . 16 19 Class Distribution -------------------- 93% | Mutant 6% | Scavenger-Mutant Dominant Class ---------------- Mutant | -10/Materials Mutant | -10/Subcaves Resources | -11 -10 -10 ----------- Run | Yrd Mat Sub Matter Collected 572 | 192 380 . Remotely . | . . . Salvage Created 1110 | . 1064 46 Parts 71 | . 69 2 Haulers Intercepted 2 | . 2 . Recyclers Shooed . | . . . Parts Field Recycled . | . . . Retrieved Matter . | . . . Parts Self-Destructed 1 | . . 1 Prevented . | . . . Kills | -11 -10 -10 ------- Run | Yrd Mat Sub Combat Hostiles Destroyed 20 | . 19 1 Guns 20 | . 19 1 Classes Destroyed 9 | . 8 1 Worker 2 | . 2 . Builder 2 | . 2 . Tunneler 2 | . 2 . Hauler 2 | . 2 . Recycler 2 | . 2 . Watcher 3 | . 3 . Swarmer 6 | . 6 . Grunt 13 | . 13 . Subdweller 1 | . . 1 Best Kill Streak 8 | . 8 1 Combat Bots Only 7 | . 7 1 Max Kills in Single Turn 2 | . 2 1 Gunslinging . | . . . Exploded . | . . . Melee . | . . . Uniques/NPCs Destroyed . | . . . Combat | -11 -10 -10 -------- Run | Yrd Mat Sub Hostile Shots Fired 103 | . 94 9 Missed 29 | . 27 2 Damage Taken 904 | . 712 192 Core 263 | . 179 84 Absorbed by Shields . | . . . Core Remaining (%) 100 | 100 . . Volleys Fired 99 | . 90 9 Largest 2 | . 2 2 Hottest 100 | . 100 100 Shots Fired 198 | . 180 18 Gun 198 | . 180 18 Cannon . | . . . Launcher . | . . . Special . | . . . Kinetic 59 | . 59 . Thermal 139 | . 121 18 Explosive . | . . . Electromagnetic . | . . . Robot Hit Streak 14 | . 11 14 Robot Miss Streak 5 | . 5 1 Penetration Max . | . . . Secondary Targets 2 | . 2 . Max Gunslinging Chain 1 | . 1 . Shots Hit Robots 125 | . 114 11 Core Hits 55 | . 53 2 Critical Kills . | . . . Critical Parts Destroyed 1 | . 1 . Critical Strikes 7 | . 7 . Burn 6 | . 6 . Destroy 1 | . 1 . Melee Attacks . | . . . Impact . | . . . Slashing . | . . . Piercing . | . . . Sneak Attacks . | . . . Combat Hostiles . | . . . Follow-up Attacks . | . . . Damage Inflicted 1513 | . 1378 135 Guns 1513 | . 1378 135 Cannons . | . . . Explosions . | . . . Melee . | . . . Ramming . | . . . Kinetic 518 | . 518 . Thermal 995 | . 860 135 Explosive . | . . . Electromagnetic . | . . . Impact . | . . . Slashing . | . . . Piercing . | . . . Highest Corruption . | . . . Average Corruption . | . . . Corruption Purged . | . . . Corruption Blocked . | . . . Overload Shots . | . . . Overflow Damage . | . . . Projectiles . | . . . Explosions . | . . . Melee . | . . . Knockbacks . | . . . Impact . | . . . Kinetic . | . . . Secondary . | . . . Self-Inflicted Damage . | . . . Shots . | . . . Rammed . | . . . Targets Rammed . | . . . Kicked . | . . . Crushed . | . . . Highest Temperature 207 | . 207 . Average Temperature 44 | . 44 . Received Heat Transfer 345 | . 309 36 Siege Activations . | . . . Robots Corrupted . | . . . Combat Hostiles . | . . . Parts Fried . | . . . Impact Corruptions . | . . . Robots Melted . | . . . Combat Hostiles . | . . . Parts Melted 3 | . 3 . Heat Transferred 3157 | . 2750 407 Parts Sabotaged . | . . . Parts Stolen . | . . . Parts Stripped . | . . . Power Chain Reactions . | . . . Alert | -11 -10 -10 ------- Run | Yrd Mat Sub Peak Influence 263 | . 263 . Initial . | . . . Average 106 | . 109 . Maximum Alert Level 1 | . 1 . Low Security (%) 84 | 100 84 . Level 1 15 | . 15 . Level 2 . | . . . Level 3 . | . . . Level 4 . | . . . Level 5 . | . . . High Security . | . . . Max Security . | . . . Squads Dispatched 4 | . 4 . Investigation . | . . . Extermination . | . . . Reinforcement 4 | . 4 . Assault . | . . . Garrison . | . . . Intercept . | . . . Searches Triggered . | . . . Construction Impeded . | . . . Haulers Reinforced . | . . . Active Scanning Responses . | . . . Cargo Convoy Interrupts . | . . . Stealth | -11 -10 -10 --------- Run | Yrd Mat Sub Distress Signals 2 | . 2 . Communications Jammed . | . . . Distress Signals . | . . . Times Spotted 29 | . 27 2 Peak Tracking Total 4 | . 4 1 Tactical Retreats . | . . . Traps | -11 -10 -10 ------- Run | Yrd Mat Sub Traps Triggered 2 | . 1 1 Indirectly . | . . . Trap Hack Attempts . | . . . Triggered . | . . . Disarmed . | . . . Reprogrammed . | . . . Reused . | . . . Traps Extracted . | . . . Installed . | . . . Triggered . | . . . Machines | -11 -10 -10 ---------- Run | Yrd Mat Sub Machines Disabled 1 | . 1 . Max in Single Turn 1 | . 1 . Machines Repaired . | . . . Machines Dismantled . | . . . Machines Sabotaged . | . . . Overloaded Fab Kills . | . . . Hacking | -11 -10 -10 --------- Run | Yrd Mat Sub Machines Accessed 3 | . 2 1 Terminals 2 | . 2 . Fabricators . | . . . Repair Stations . | . . . Recycling Units . | . . . Scanalyzers . | . . . Garrison Access . | . . . Total Hacks 5 | . 4 1 Successful 3 | . 2 1 Failed 2 | . 2 . Catastrophic . | . . . Database Lockouts . | . . . Manual 1 | . . 1 Terminals 4 | . 4 . Fabricators . | . . . Repair Stations . | . . . Recycling Units . | . . . Scanalyzers . | . . . Garrison Access . | . . . Terminal Hacks 3 | . 2 1 Record 1 | . . 1 Locate Traps 1 | . 1 . Zone Layout 1 | . 1 . Fabricator Hacks . | . . . Repair Station Hacks . | . . . Recycling Unit Hacks . | . . . Scanalyzer . | . . . Garrison Access Hacks . | . . . Unauthorized Hacks . | . . . Terminals . | . . . Fabricators . | . . . Repair Stations . | . . . Recycling Units . | . . . Scanalyzers . | . . . Garrison Access . | . . . Data Cores Recovered . | . . . Used . | . . . Hacking Detections 1 | . 1 . Full Trace Events . | . . . Feedback Events . | . . . Feedback Blocked . | . . . Robot Schematics Acquired . | . . . Robots Built . | . . . Authchips . | . . . Time . | . . . Total Robot Build Rating . | . . . Part Schematics Acquired . | . . . Parts Built . | . . . Authchips . | . . . Time . | . . . Total Part Build Rating . | . . . Parts Repaired . | . . . Time . | . . . Parts Recycled . | . . . Recycled Matter . | . . . Retrieved Matter . | . . . Retrieved Components . | . . . Parts Scanalyzed . | . . . Part Schematics Acquired . | . . . Parts Damaged . | . . . Bothacking | -11 -10 -10 ------------ Run | Yrd Mat Sub Used RIF Installer . | . . . Robots Hacked . | . . . Non-combat . | . . . Combat . | . . . Robot Hacks Applied . | . . . Relay Couplers Released . | . . . Fabnet Peak Effective % . | . . . Robots Rewired . | . . . Allies Hacked . | . . . Hacks Repelled . | . . . Allies | -11 -10 -10 -------- Run | Yrd Mat Sub Total Allies . | . . . Largest Group . | . . . Highest-Rated Group . | . . . Highest-Rated Ally . | . . . Total Orders . | . . . Ally Attacks . | . . . Total Damage . | . . . Kills . | . . . Allies Corrupted . | . . . Allies Melted . | . . . Intel | -11 -10 -10 ------- Run | Yrd Mat Sub Robot Analysis Total . | . . . Derelict Logs Recovered 1 | . . 1 Drone Launches . | . . . Drone Recoveries . | . . . Exploration | -11 -10 -10 ------------- Run | Yrd Mat Sub Turns Passed 2305 | 38 1522 745 Spaces Moved 1495 | 37 991 467 Core 9 | 9 . . Treads . | . . . Legs . | . . . Wheels 1486 | 28 991 467 Hover . | . . . Flight . | . . . Fastest Speed 50 | 50 80 140 Average Speed 123 | 80 117 140 Slowest Speed 215 | 90 215 140 Overloaded Moves . | . . . Propulsion Burnouts . | . . . Robots Hopped . | . . . Cave-ins Triggered . | . . . Exploration Rate (%) 46 | 3 99 36 Regions Visited 2 Branch Regions 1 Pre-discovered Areas 1 | . . 1 Known Exits Taken . | . . . Unknown Exits Taken 2 | 1 1 . Scrap Searched 2 | . . 2 Spaces Dug . | . . . Terrain Destroyed . | . . . Melee . | . . . Projectile . | . . . AOE . | . . . Terrain Rammed . | . . . Walls Destroyed . | . . . Machines Disabled . | . . . Actions | -11 -10 -10 --------- Run | Yrd Mat Sub Total 1752 | 42 1171 539 Wait 107 | . 46 61 Move 1493 | 36 990 467 Hop . | . . . Pick Up 23 | . 21 2 Fast Attach 11 | 6 5 . Attach 3 | . 3 . Detach . | . . . Swap 8 | . 8 . Drop 8 | . 8 . Fire 99 | . 90 9 Melee . | . . . Ram . | . . . Kick . | . . . Crush . | . . . Escape Stasis . | . . . Rewire . | . . . Trap . | . . . Miscellaneous . | . . . Route ------- -11/Scrapyard -10/Materials (discovered 5 exits: [*Mat x3] / [*Min] / *Sub) -10/Subcaves History --------- Turn | Location | Event 24 | -11/Scrapyard | Discovered new exit (range 13) 39 | -11/Scrapyard | Entered Materials 236 | -10/Materials | Discovered new exit (range 8) 239 | -10/Materials | Destroyed 7 combat bots 302 | -10/Materials | Discovered new exit (range 16) 308 | -10/Materials | Build established: Mutant 436 | -10/Materials | Core integrity fell below 50% 621 | -10/Materials | Discovered new exit (range 16) 836 | -10/Materials | Discovered new exit (range 12) 1550 | -10/Materials | Discovered new exit (range 7) 1561 | -10/Materials | Entered Subcaves 1564 | -10/Subcaves | Learned location of Zion (-6) 1893 | -10/Subcaves | Disturbed a concealed Subdweller 1907 | -10/Subcaves | Core integrity fell below 20% 1962 | -10/Subcaves | A swath of the cavern ceiling suddenly collapsed 2282 | -10/Subcaves | Visited Clippyterm 2306 | -10/Subcaves | Destroyed by 33-C69(R) with Subdweller Machine Gun Last Messages --------------- 01930_ Found Piercing Trap. 01930_ Found 31 Matter. 01932_ Searching scrap... 01932_ Found Scrap Shield. 01932_ Found 16 Matter. 01936_ Acquired Scrap Shield. 01955_ Subatomizers dissect the Sub. Power Source. A swath of the cavern ceiling suddenly collapses. 02033_ Triggered Piercing Trap. 02033_ Spikes shoot up from the floor. 02033_ Critical hit (Impale). 02282_ The door opens automatically. 02286_ Connecting with Clippyterm... 02286_ Current location identified: Subcaves >>Record "Clippyterm" Welcome to Clippyterm v0.53, my misguided attempt to resurrect an ancient AI. I give up. There must be something fundamentally wrong with the algorithm, because no matter how much data I collect to feed it, half the time it still manages to suggest unhelpful sample queries and responses. --DD-NU8 Map ----- +----------------------------------------------------+ | ?????????????????????????????????????????????????? | | ?????????????????????????????????????????????????? | | ?????????????????????????????????????????????????? | | ?????????????????????????????????????????????????? | | ?????????????????????????????????????????????????? | | ?????????????????????????????????????????????????? | | ?????????????????????????????????????????????????? | | ?????????????????????????????????????????????????? | | ?????????????????????????????????????????????????? | | ?????????????????????????????????????????????????? | | ?????????????????????????????????????????????????? | | ?????????????????????????????????????????????????? | | ?????????????????????????????????????????????????? | | ?????????????????????????????????????????????????? | | ?????????????????????????????????????????????????? | | ?????????????????????????????????## ????????????? | | ????????????????????????????????#% ???????????? | | ???????????????????????????????? ???????????? | | ???????????????????????????????? ???????????? | | ????????????????????????????????# ???????????? | | ????????????????????????????????# ????????????? | | ??????????????????????#######??? ????????????? | | ??????????????????????#"""""#??? ????????????? | | ??????????????????????#""X""#??? #????????????? | | ??????????????????????#" "#????% #????????????? | | ??????????????????????###@###???? #????????????? | | ?????????????????????#?## ###???? #????????????? | | ?????????????????????# # #??### #????????????? | | ?????????????????###%# #### # #????????????? | | ?????????????????# % #????##??????? | | ?????????????????# ## # R ## ##?? #??????? | | ?????????????????#???### ### #### ##? #??#???? | | ??????????????????????# ??##### ## ## # | | ????????????????????? ?????# | | ???????????????????? ?????## #???? | | ??????????????????% #####??????##### # ## # #??? | | ?????????????????##???????????????# ##??#??#??? | | ??????????????????????????????????## #?????????? | | ??????????????????????????????????# #??????#??? | | ??????????????????????????????????## ##???? #??? | | ???????????????????????????????????# #### #??? | | ???????????????????????????????????## # | | ????????????????????????????????????### % | | ?????????????????????????????????????# ## | | ?????????????????????????????????????## #?? | | ????????????????????????????????????## ##?? # | | ?###???????????????????????????????## ###? #? | | ## ##??????????????????????????????# ##?##? | | #"" #??????????????????????????????# #???? | | #"###??????????????????????????????# ######???? | +----------------------------------------------------+ Best States ------------- Heat Dissipation 47 Energy Generation 10 Energy Capacity 250 Matter Stores 300 Matter Capacity 300 Sight Range 16 Terrain Scan Density 10 Evasion (%) 50 Item Schematics ----------------- None Robot Schematics ------------------ None Fabricated ------------ Nothing Alien Tech Used ----------------- None Achievements -------------- None Challenges ------------ None Game ------ Seed GravmagGlidesysLog Manual? 0 Play Time 00:19:02 Cumulative 207.6 hours Start 2024.03.31 @ 13:43:54 End 2024.03.31 @ 13:59:30 Sessions 1 Manual Loads 0 Difficulty Rogue Special Mode None Game No. 160 Rogue 148 Adventurer 12 Explorer 0 Win Type - Total 1 Types 1/0/0/0/0/0/0/0/0 Lore% 27 Gallery% 44 Achievement% 32 Wizard Run 0 Options --------- Layout 1 ASCII 0 Keyboard 0 Movement Mouse Keybinds 0 Fullscreen 1 Font 32/SmallcapsGlow Map View 77x35 Zoom Use 0% Tactical HUD 1 Map Filters NONE Filters NONE Steam 1 RUN: bc16744a-732c-4c8c-9410-db49e248e752